[Event "FISCA Open 2022"]
[Site "Cap Aurora"]
[Date "2022.06.23"]
[Round "2.14"]
[White "Negrean, Andrei"]
[Black "Vaduva, Ion-Valentin"]
[Result "1-0"]
[ECO "D02"]
[WhiteElo "1846"]
[BlackElo "1473"]
[Annotator "NA RC"]
[PlyCount "63"]
[EventDate "2022.06.22"]
[EventType "swiss"]
[EventCountry "ROU"]
[SourceTitle "playchess.com"]
[Source "ChessBase"]
[SourceQuality "1"]
[TimeControl "5400+30"]

1. d4 {[%emt 0:05:14]} Nf6 {[%emt 0:06:04]} 2. Nf3 {[%emt 0:00:30]} e6 {[%emt 0:00:30]} 3. g3 {[%emt 0:00:30]} c5 {[%emt 0:00:30]} 4. Bg2 {[%emt 0:00:30]} cxd4 {[%emt 0:00:30]} 5. O-O {[%emt 0:00:30]} d5 {[%emt 0:00:30]} 6. Nxd4 {[%emt 0:00:30]} e5 {[%emt 0:00:30]} 7. Nb3 {[%emt 0:00:30]} Be6 {[%emt 0:00:30]} 8. c4 {[%emt 0:00:30]} Nc6 {[%emt 0:00:30]} 9. cxd5 {[%emt 0:00:30]} Nxd5 {[%emt 0:00:30]} 10. N1d2 {[%emt 0:00:30]} Be7 {[%emt 0:00:30]} 11. Ne4 {[%emt 0:00:30]} b6 {[%emt 0:00:30]} 12. Nc3 {[%emt 0:00:30]} Ncb4 {[%emt 0:00:30]} 13. a3 {[%emt 0:00:30]} Nxc3 {[%emt 0:00:30]} 14. bxc3 {[%emt 0:00:30]} Qxd1 {[%emt 0:00:30]} 15. Rxd1 {[%emt 0:00:30]} Bxb3 {[%emt 0:00:30]} 16. Bxa8 {[%emt 0:00:30]} Bxd1 {[%emt 0:00:30]} 17. axb4 {[%emt 0:00:30]} O-O {[%emt 0:00:30]} 18. Bf3 {[%emt 0:00:30]} e4 {[%emt 0:00:30]} 19. Bxe4 {[%emt 0:00:30]} Bxe2 {[%emt 0:00:30]} 20. Rxa7 {[%emt 0:00:30]} Bf6 {[%emt 0:00:30]} 21. Bb2 {[%emt 0:00:30]} g5 {[%emt 0:00:30]} 22. f3 {[%emt 0:00:30]} Rd8 {[%emt 0:00:30]} 23. Kf2 {[%emt 0:00:30]} Rd2 {[%emt 0:00:30]} 24. Bc1 {[%emt 0:00:30]} Rd1 {[%emt 0:00:30]} 25. Be3 {[%emt 0:00:30]} Bb5 {[%emt 0:00:30]} 26. Rc7 {[%emt 0:00:30]} h6 {[%emt 0:00:30]} 27. c4 {[%emt 0:00:30]} Bd8 {[%emt 0:00:30]} 28. Rc8 {[%emt 0:00:30]} Ba6 {[%emt 0:00:30]} 29. Ra8 {[%emt 0:00:30]} Bxc4 {[%emt 0:00:30]} 30. Bxb6 {[%emt 0:00:30]} Rd2+ {[%emt 0:00:30]} 31. Ke3 {[%emt 0:00:30]} Rxh2 {[%emt 0:00:30]} 32. Rxd8+ {[%emt 0:00:30]} 1-0

[Event "FISCA Open 2022"]
[Site "Cap Aurora"]
[Date "2022.06.24"]
[Round "3.1"]
[White "Trifoi, Mihaela-Ioana"]
[Black "Petre, Nad-Titus"]
[Result "1/2-1/2"]
[ECO "B07"]
[WhiteElo "1949"]
[BlackElo "2297"]
[Annotator "TA"]
[PlyCount "50"]
[EventDate "2022.06.22"]
[EventType "swiss"]
[EventCountry "ROU"]
[SourceTitle "playchess.com"]
[Source "ChessBase"]
[SourceQuality "1"]
[TimeControl "5400+30"]

{[%evp 13,50,11,22,3,12,8,22,20,46,35,48,18,50,49,95,68,111,37,62,47,52,0,53,58,55,60,63,50,58,55,64,65,63,56,72,70,55,54,46]} 1. e4 {[%emt 0:00:03]} g6 {[%emt 0:00:32]} 2. d4 {[%emt 0:00:42]} Bg7 {[%emt 0:00:16]} 3. Nf3 {[%emt 0:00:50]} d6 {[%emt 0:00:44]} 4. c3 {[%emt 0:02:10]} Nd7 {[%emt 0:02:33]} 5. Bd3 {[%emt 0:01:51]} e5 {[%emt 0:01:53]} 6. O-O {[%emt 0:01:14]} Ngf6 $1 {[%emt 0:00:06] 6...Ngf6 scores better than 6...Ne7.} 7. Nbd2 {[%emt 0:00:38]} O-O {[%emt 0:00:07]} 8. Qc2 {[%emt 0:09:56] B07: Pirc Defence: Miscellaneous Systems.} b6 {[%emt 0:01:33]} 9. a4 {[%emt 0:00:36]} a5 {[%emt 0:06:22]} 10. dxe5 {[%emt 0:10:09] The position is equal.} dxe5 {[%emt 0:00:16]} 11. b4 {[%emt 0:01:00]} Re8 {[%emt 0:17:13]} 12. Re1 {[%emt 0:14:09]} Bb7 {[%emt 0:07:04] [#]} 13. Bc4 $146 {[%emt 0:01:24]} ({Predecessor:} 13. Nc4 Bf8 14. Bd2 Bc6 15. Reb1 Ra7 16. Bg5 h6 17. Bh4 axb4 18. cxb4 Qa8 19. Ncxe5 Nxe5 20. Nxe5 Rxe5 21. Bxf6 Rxe4 {0-1 (66) Sargsyan,T (2281)-Alaverdyan,G (2279) Yerevan 2021}) 13... Re7 {[%emt 0:09:14]} (13... Nh5 $14) 14. Ba3 $16 {[%emt 0:00:33]} c5 {[%emt 0:06:52]} 15. Qb3 {[%emt 0:10:41]} (15. Bb5 $16) 15... Bh6 {[%emt 0:04:52]} 16. Rad1 {[%emt 0:02:43] And now bxc5 would win.} Qc7 {[%emt 0:02:21]} 17. h3 {[%emt 0:06:32]} (17. Qc2 $14) 17... Bc6 {[%emt 0:05:05]} (17... axb4 $11 18. cxb4 cxb4 19. Bxb4 Nc5) 18. b5 $14 {[%emt 0:03:10]} Bb7 {[%emt 0:00:34]} 19. Bd3 {[%emt 0:00:27][%cal Bc4d3,Bd3b1,Bb1a2][%mdl 32]} Nf8 {[%emt 0:04:57]} 20. Nc4 {[%emt 0:00:41]} Rd8 {[%emt 0:06:21]} 21. Bb1 {[%emt 0:04:09]} Rxd1 {[%emt 0:06:01]} 22. Qxd1 {[%emt 0:00:24]} Ne8 {[%emt 0:01:03] Against Qd6} 23. Ba2 {[%emt 0:05:16]} Kg7 {[%emt 0:01:15]} 24. Bc1 {[%emt 0:01:08] White is more active.} Bxc1 {[%emt 0:02:14]} 25. Qxc1 {[%emt 0:00:05]} Nd6 {[%emt 0:04:21] Weighted Error Value: White=0.13 (very precise) /Black=0.17 (very precise)} 1/2-1/2

[Event "FISCA Open 2022"]
[Site "Cap Aurora"]
[Date "2022.06.24"]
[Round "3.2"]
[White "Ardeleanu, Alin"]
[Black "Capragiu, Matei-Stefan"]
[Result "1-0"]
[ECO "C15"]
[WhiteElo "2290"]
[BlackElo "1925"]
[Annotator "NA RC"]
[PlyCount "83"]
[EventDate "2022.06.22"]
[EventType "swiss"]
[EventCountry "ROU"]
[SourceTitle "playchess.com"]
[Source "ChessBase"]
[SourceQuality "1"]
[TimeControl "5400+30"]

1. e4 {[%emt 0:00:05]} e6 {[%emt 0:00:21]} 2. d4 {[%emt 0:00:20]} d5 {[%emt 0:00:05]} 3. Nc3 {[%emt 0:00:14]} Bb4 {[%emt 0:00:07]} 4. Bd3 {[%emt 0:10:47]} c5 {[%emt 0:03:40]} 5. exd5 {[%emt 0:02:39]} cxd4 {[%emt 0:06:55]} (5... Qxd5 $11 6. Bd2 Bxc3 7. Bxc3 cxd4 8. Bxd4 e5) 6. Bb5+ {[%emt 0:08:55]} Bd7 {[%emt 0:08:15]} 7. Bxd7+ {[%emt 0:01:21]} Qxd7 {[%emt 0:07:41]} 8. Qxd4 $16 {[%emt 0:00:27]} Nc6 {[%emt 0:13:47]} 9. Qxg7 {[%emt 0:02:07]} Qxd5 {[%emt 0:03:49]} 10. Nf3 {[%emt 0:08:50]} O-O-O {[%emt 0:01:00]} 11. O-O {[%emt 0:10:18]} Bxc3 {[%emt 0:01:53]} 12. Qxc3 {[%emt 0:00:09]} Nge7 {[%emt 0:01:09]} 13. Bg5 {[%emt 0:00:55]} Kb8 {[%emt 0:01:11]} 14. Bxe7 {[%emt 0:01:00]} Nxe7 {[%emt 0:00:30]} 15. Qe5+ {[%emt 0:01:32]} Kc8 {[%emt 0:01:15]} 16. c4 {[%emt 0:05:29]} Qd3 {[%emt 0:07:48]} 17. Qc5+ {[%emt 0:01:41]} Nc6 {[%emt 0:00:33]} 18. Rae1 {[%emt 0:26:33]} Rhg8 {[%emt 0:05:02]} 19. Re3 {[%emt 0:06:02]} Qg6 {[%emt 0:04:19]} 20. g3 {[%emt 0:00:17]} Qf6 {[%emt 0:06:41]} 21. b4 {[%emt 0:04:25]} Qe7 {[%emt 0:04:36]} 22. Qxe7 {[%emt 0:00:11]} Nxe7 {[%emt 0:00:02]} 23. Ne5 {[%emt 0:00:54]} Nf5 {[%emt 0:02:04]} 24. Rc3 {[%emt 0:04:03]} f6 {[%emt 0:00:27]} 25. Nf3 {[%emt 0:00:14]} e5 {[%emt 0:01:29]} 26. Re1 {[%emt 0:00:02]} Nd6 {[%emt 0:03:38]} 27. Kf1 {[%emt 0:02:02]} Rg4 {[%emt 0:00:20]} 28. a4 {[%emt 0:01:26]} Ne4 {[%emt 0:11:39]} 29. h3 {[%emt 0:01:15]} Nxc3 30. hxg4 {[%emt 0:00:01]} Rd3 {[%emt 0:03:37]} 31. Kg2 {[%emt 0:00:08]} Kd7 {[%emt 0:01:13]} 32. a5 {[%emt 0:00:37]} e4 {[%emt 0:00:22]} 33. Nh4 {[%emt 0:00:24]} Rd4 {[%emt 0:00:32]} 34. a6 {[%emt 0:01:06]} b6 {[%emt 0:00:34]} 35. Nf5 {[%emt 0:00:10]} Rxc4 {[%emt 0:00:14]} 36. Rh1 {[%emt 0:00:10]} Nb5 {[%emt 0:00:26]} 37. Rxh7+ {[%emt 0:00:11]} Kc6 {[%emt 0:00:44]} 38. Rf7 {[%emt 0:01:37]} Rxb4 {[%emt 0:00:44]} 39. Rxf6+ {[%emt 0:00:01]} Kc5 {[%emt 0:00:00]} 40. g5 {[%emt 0:00:17]} Nd4 {[%emt 0:00:59]} 41. g6 {[%emt 0:00:55]} e3 {[%emt 0:00:46]} 42. Nxe3 {[%emt 0:01:40]} 1-0

[Event "FISCA Open 2022"]
[Site "Cap Aurora"]
[Date "2022.06.24"]
[Round "3.3"]
[White "Coca, Cristi-Iulian"]
[Black "Negrean, Andrei"]
[Result "1/2-1/2"]
[ECO "E05"]
[WhiteElo "2174"]
[BlackElo "1846"]
[Annotator "NA RC"]
[PlyCount "78"]
[EventDate "2022.06.22"]
[EventType "swiss"]
[EventCountry "ROU"]
[SourceTitle "playchess.com"]
[Source "ChessBase"]
[SourceQuality "1"]
[TimeControl "5400+30"]

1. Nf3 {[%emt 0:00:02]} Nf6 {[%emt 0:00:14]} 2. g3 {[%emt 0:00:05]} d5 {[%emt 0:00:47]} 3. Bg2 {[%emt 0:00:11]} e6 {[%emt 0:00:49]} 4. O-O {[%emt 0:00:10]} Be7 {[%emt 0:00:48]} 5. d4 {[%emt 0:00:13]} O-O {[%emt 0:00:26]} 6. c4 {[%emt 0:00:23]} dxc4 {[%emt 0:00:46]} 7. Na3 {[%emt 0:01:51]} Bxa3 {[%emt 0:11:21]} 8. bxa3 {[%emt 0:00:29]} Bd7 {[%emt 0:08:39]} (8... b5 $15 {is more appropriate.}) 9. Ne5 {[%emt 0:01:02]} Bc6 {[%emt 0:01:27]} 10. f3 $17 {[%emt 0:15:42]} ({Don't go for} 10. Nxc4 $2 Bxg2 11. Kxg2 Qd5+ 12. f3 Qxc4 $19) (10. Bxc6 $11 {keeps the balance.} Nxc6 11. Nxc6 bxc6 12. Bg5) 10... Qd5 {[%emt 0:15:02]} 11. e4 {[%emt 0:02:42]} Qb5 {[%emt 0:02:35]} 12. Qc2 {[%emt 0:11:39]} Qa6 {[%emt 0:17:11]} 13. Bg5 {[%emt 0:09:06]} Nfd7 {[%emt 0:12:57]} 14. Nxc4 {[%emt 0:03:18]} Bb5 {[%emt 0:04:23]} 15. Rfc1 {[%emt 0:01:31]} Nc6 {[%emt 0:02:17]} 16. Be3 {[%emt 0:09:43]} Bxc4 {[%emt 0:03:28]} 17. Qxc4 {[%emt 0:00:01]} Qxa3 {[%emt 0:01:01]} 18. Rc3 {[%emt 0:18:50]} Nb6 {[%emt 0:03:12]} 19. Qb3 {[%emt 0:02:02]} Qxb3 {[%emt 0:02:54]} 20. axb3 {[%emt 0:00:02]} Rfd8 {[%emt 0:04:34]} 21. Rd1 {[%emt 0:02:24]} Rd7 {[%emt 0:01:18]} 22. Bh3 {[%emt 0:00:05]} Ne5 {[%emt 0:04:07]} 23. Rf1 {[%emt 0:01:16]} Ng6 {[%emt 0:01:06]} 24. d5 {[%emt 0:02:55]} Nf8 {[%emt 0:00:31]} 25. Rfc1 {[%emt 0:00:20]} Rc8 {[%emt 0:00:34]} 26. Bc5 {[%emt 0:00:34]} Rcd8 {[%emt 0:00:29]} 27. Bxf8 {[%emt 0:10:27]} Kxf8 {[%emt 0:00:06]} 28. dxe6 {[%emt 0:00:09]} Rd1+ {[%emt 0:00:40]} 29. Bf1 {[%emt 0:02:17]} c6 {[%emt 0:00:39]} 30. exf7 {[%emt 0:00:05]} Kxf7 {[%emt 0:00:29]} 31. Rxd1 {[%emt 0:03:40]} Rxd1 {[%emt 0:00:01]} 32. Kf2 {[%emt 0:00:13]} a5 {[%emt 0:00:57]} 33. Be2 {[%emt 0:00:29]} Rb1 {[%emt 0:00:27]} 34. Rc5 {[%emt 0:02:14]} a4 {[%emt 0:00:41]} 35. bxa4 {[%emt 0:00:24]} Nxa4 {[%emt 0:00:17]} 36. Rc4 {[%emt 0:01:15]} Nb6 {[%emt 0:00:44]} 37. Rc5 {[%emt 0:00:05]} Na4 {[%emt 0:00:31]} 38. Rc4 {[%emt 0:00:05]} Nb6 {[%emt 0:00:03]} 39. Rc5 {[%emt 0:00:05]} Na4 {[%emt 0:00:54]} 1/2-1/2

[Event "FISCA Open 2022"]
[Site "Cap Aurora"]
[Date "2022.06.24"]
[Round "3.4"]
[White "Ribarov, Valerij"]
[Black "Daianu, Cristian-Clement"]
[Result "0-1"]
[ECO "A90"]
[WhiteElo "1918"]
[BlackElo "2149"]
[Annotator "NA RC"]
[PlyCount "76"]
[EventDate "2022.06.22"]
[EventType "swiss"]
[EventCountry "ROU"]
[SourceTitle "playchess.com"]
[Source "ChessBase"]
[SourceQuality "1"]
[TimeControl "5400+30"]

1. c4 {[%emt 0:01:07]} f5 {[%emt 0:01:48]} 2. d4 {[%emt 0:01:56]} Nf6 {[%emt 0:00:16]} 3. Nc3 {[%emt 0:00:04]} e6 {[%emt 0:00:04]} 4. g3 {[%emt 0:00:18]} d5 {[%emt 0:04:02]} 5. Nf3 {[%emt 0:04:22]} c6 {[%emt 0:00:15]} 6. Bg2 {[%emt 0:00:56]} Bd6 {[%emt 0:00:21]} 7. O-O {[%emt 0:02:02]} O-O {[%emt 0:05:53]} 8. b3 {[%emt 0:08:24]} Nbd7 {[%emt 0:06:33]} 9. Ne1 {[%emt 0:06:05]} Ne4 $11 {[%emt 0:10:21]} 10. Bb2 {[%emt 0:05:05]} Qe8 {[%emt 0:03:13]} 11. f3 {[%emt 0:08:46]} Nxc3 {[%emt 0:13:05]} 12. Bxc3 {[%emt 0:00:05]} f4 {[%emt 0:00:06]} 13. gxf4 {[%emt 0:04:07]} Bxf4 {[%emt 0:04:15]} 14. Bd2 {[%emt 0:03:52]} e5 {[%emt 0:03:24]} 15. cxd5 {[%emt 0:14:12]} Qh5 {[%emt 0:12:56]} 16. Bxf4 {[%emt 0:04:12]} exf4 {[%emt 0:00:25]} 17. e4 {[%emt 0:10:42]} fxe3 {[%emt 0:10:07]} 18. Nc2 {[%emt 0:02:22]} Qxd5 {[%emt 0:13:49]} 19. Nxe3 {[%emt 0:02:15]} Qg5 {[%emt 0:00:04]} 20. Qd3 {[%emt 0:05:07]} Nb6 {[%emt 0:01:28]} 21. Rae1 {[%emt 0:03:23]} Be6 {[%emt 0:02:21]} 22. Qe4 {[%emt 0:04:49]} Rae8 {[%emt 0:03:33]} 23. f4 {[%emt 0:03:39]} Qh6 {[%emt 0:00:18]} 24. f5 {[%emt 0:00:45]} Bc4 {[%emt 0:00:41]} 25. Ng4 {[%emt 0:01:53]} Qh5 {[%emt 0:00:15]} 26. Qf3 {[%emt 0:00:09]} Bxf1 {[%emt 0:01:23]} 27. Nf6+ {[%emt 0:01:07]} Rxf6 {[%emt 0:00:05]} 28. Qxh5 {[%emt 0:00:05]} Rxe1 {[%emt 0:00:06]} 29. Bxf1 {[%emt 0:00:16]} Nd5 {[%emt 0:00:05]} 30. Qh3 {[%emt 0:01:25]} Ne3 {[%emt 0:02:27]} 31. Kf2 {[%emt 0:01:14]} Rxf1+ {[%emt 0:00:06]} 32. Kxe3 {[%emt 0:00:08]} R1xf5 {[%emt 0:00:34]} 33. Ke4 {[%emt 0:00:42]} g6 {[%emt 0:00:21]} 34. d5 {[%emt 0:00:39]} Rf4+ {[%emt 0:01:14]} 35. Ke5 {[%emt 0:00:29]} R6f5+ {[%emt 0:00:08]} 36. Kd6 {[%emt 0:00:41]} Rxd5+ {[%emt 0:00:10]} 37. Kc7 {[%emt 0:00:03]} Rf7+ {[%emt 0:00:12]} 38. Kc8 {[%emt 0:00:12]} Re5 {[%emt 0:00:23]} 0-1

[Event "FISCA Open 2022"]
[Site "Cap Aurora"]
[Date "2022.06.24"]
[Round "3.5"]
[White "Mintau, Andrei-Catalin"]
[Black "Mihailiuc, Flavius-Iulian"]
[Result "1/2-1/2"]
[ECO "B28"]
[WhiteElo "2130"]
[BlackElo "1820"]
[Annotator "NA RC"]
[PlyCount "267"]
[EventDate "2022.06.22"]
[EventType "swiss"]
[EventCountry "ROU"]
[SourceTitle "playchess.com"]
[Source "ChessBase"]
[SourceQuality "1"]
[TimeControl "5400+30"]

1. e4 {[%emt 0:00:03]} c5 {[%emt 0:00:11]} 2. Nf3 {[%emt 0:00:03]} a6 {[%emt 0:00:07]} 3. c3 {[%emt 0:00:36]} d5 {[%emt 0:00:06]} 4. exd5 {[%emt 0:00:10]} Qxd5 {[%emt 0:00:09]} 5. d4 {[%emt 0:00:11]} Bg4 {[%emt 0:00:08]} 6. Be2 {[%emt 0:00:06]} e6 {[%emt 0:00:05]} 7. O-O {[%emt 0:03:33]} Nf6 {[%emt 0:00:24]} 8. Be3 {[%emt 0:00:09]} cxd4 {[%emt 0:02:17]} 9. cxd4 {[%emt 0:00:29]} Be7 {[%emt 0:00:36]} 10. Nc3 {[%emt 0:00:38]} Qd8 {[%emt 0:02:01]} 11. Qb3 {[%emt 0:09:02]} ({Much weaker is} 11. Ne5 Bxe2 12. Qxe2 (12. Nxe2 O-O $11) 12... Nc6 $11) ({White should play} 11. h3 $14 Bf5 12. Rc1) 11... b5 {[%emt 0:03:33] [#]} (11... Nc6 $1 $14) 12. h3 $1 {[%emt 0:05:18]} Bh5 {[%emt 0:00:41] [#]} (12... b4 $16) 13. g4 {[%emt 0:00:22]} ({Better is} 13. d5 $1 $18 {[%cal Rd5e6]}) 13... Bg6 {[%emt 0:00:08]} 14. Ne5 {[%emt 0:00:05]} Nd5 {[%emt 0:06:10]} 15. Bf3 {[%emt 0:00:28]} ({Better is} 15. Nxd5 $16 Qxd5 16. Qxd5 exd5 17. Nxg6 hxg6 18. Bf3) 15... Nxe3 {[%emt 0:00:55]} 16. fxe3 {[%emt 0:00:09]} Ra7 {[%emt 0:00:12]} 17. Nc6 {[%emt 0:04:20]} Nxc6 {[%emt 0:00:24]} 18. Bxc6+ {[%emt 0:00:01]} Kf8 $1 {[%emt 0:00:12]} 19. Qxe6 $1 {[%emt 0:01:02]} Bf6 {[%emt 0:02:50]} 20. Qd5 $14 {[%emt 0:04:10]} Qb8 {[%emt 0:08:47]} 21. Qf3 {[%emt 0:03:13]} h5 {[%emt 0:01:05]} 22. Qf4 {[%emt 0:08:15]} Qxf4 {[%emt 0:07:12]} 23. Rxf4 {[%emt 0:05:31]} hxg4 {[%emt 0:00:10]} 24. hxg4 {[%emt 0:00:07]} Rh4 {[%emt 0:00:48]} 25. Ne4 {[%emt 0:02:18]} Bxe4 {[%emt 0:00:50]} 26. Rxe4 {[%emt 0:00:02]} Re7 {[%emt 0:00:12]} 27. Rxe7 {[%emt 0:00:11]} Rxg4+ {[%emt 0:00:06]} 28. Kf2 {[%emt 0:01:51]} Bxe7 {[%emt 0:02:10]} 29. Rc1 {[%emt 0:02:10]} Rg6 {[%emt 0:01:30]} 30. Bd5 {[%emt 0:01:27]} Rd6 {[%emt 0:01:40]} 31. e4 {[%emt 0:06:01]} f5 {[%emt 0:02:45]} 32. Kf3 {[%emt 0:00:58]} fxe4+ {[%emt 0:00:35]} 33. Kxe4 {[%emt 0:00:01]} Bf6 {[%emt 0:00:48]} 34. Rc7 {[%emt 0:02:13]} Ke8 {[%emt 0:00:23]} 35. b4 {[%emt 0:00:58]} Kd8 {[%emt 0:00:21]} 36. Ra7 {[%emt 0:01:20]} Kc8 {[%emt 0:00:16]} 37. a3 {[%emt 0:00:36]} Kb8 {[%emt 0:00:51]} 38. Rf7 {[%emt 0:00:09]} Rd8 {[%emt 0:01:00]} 39. Rb7+ {[%emt 0:00:19]} Kc8 {[%emt 0:00:02]} 40. Rb6 {[%emt 0:00:19]} Rh8 {[%emt 0:03:48]} 41. Be6+ {[%emt 0:03:10]} Kc7 {[%emt 0:00:16]} 42. Rxa6 {[%emt 0:00:07]} Rh4+ {[%emt 0:00:05]} 43. Kd5 {[%emt 0:00:02]} Bxd4 {[%emt 0:00:41]} 44. Rc6+ {[%emt 0:04:25]} Kb7 {[%emt 0:02:36]} 45. Bc8+ {[%emt 0:02:34]} Ka7 {[%emt 0:01:00]} 46. Rc2 {[%emt 0:04:40]} Bb6 {[%emt 0:03:52]} 47. Rg2 {[%emt 0:01:54]} Rd4+ {[%emt 0:01:38]} 48. Ke5 {[%emt 0:01:20]} Rd3 {[%emt 0:01:31]} 49. Rxg7+ {[%emt 0:01:25]} Ka8 {[%emt 0:00:41]} 50. Rg8 {[%emt 0:08:04]} Rxa3 {[%emt 0:00:43]} 51. Kd6 {[%emt 0:00:33]} Rc3 {[%emt 0:00:18]} 52. Bd7+ {[%emt 0:01:18]} Kb7 {[%emt 0:00:29]} 53. Bxb5 {[%emt 0:00:40]} Bc7+ {[%emt 0:00:19]} 54. Kd5 {[%emt 0:00:08]} Rh3 {[%emt 0:00:40]} 55. Rg5 {[%emt 0:00:22]} Rh6 {[%emt 0:00:12]} 56. Be2 {[%emt 0:02:25]} Rd6+ {[%emt 0:00:18]} 57. Kc5 {[%emt 0:00:14]} Rc6+ {[%emt 0:00:04]} 58. Kb5 {[%emt 0:00:10]} Rb6+ {[%emt 0:00:05]} 59. Ka4 {[%emt 0:00:04]} Rf6 {[%emt 0:00:06]} 60. Bd3 {[%emt 0:00:36]} Re6 {[%emt 0:00:39]} 61. Bf1 {[%emt 0:00:12]} Kb6 {[%emt 0:02:07]} 62. Bg2 {[%emt 0:01:01]} Be5 {[%emt 0:00:21]} 63. Bd5 {[%emt 0:00:24]} Bf6 {[%emt 0:00:39]} 64. Rf5 {[%emt 0:02:30]} Rd6 {[%emt 0:00:08]} 65. Bf3 {[%emt 0:00:07]} Bd4 {[%emt 0:00:13]} 66. Rb5+ {[%emt 0:00:06]} Kc7 {[%emt 0:00:58]} 67. Rb7+ {[%emt 0:00:53]} Kd8 {[%emt 0:00:02]} 68. Kb5 {[%emt 0:00:38]} Rd7 {[%emt 0:00:39]} 69. Rb8+ {[%emt 0:00:29]} Kc7 {[%emt 0:00:03]} 70. Rf8 {[%emt 0:00:09]} Rd6 {[%emt 0:00:16]} 71. Kc4 {[%emt 0:01:02]} Bb6 {[%emt 0:01:35]} 72. Bd5 {[%emt 0:00:22]} Be3 {[%emt 0:00:37]} 73. b5 {[%emt 0:00:20]} Bb6 {[%emt 0:00:11]} 74. Rf4 {[%emt 0:00:28]} Rd7 {[%emt 0:00:35]} 75. Be6 {[%emt 0:00:22]} Rg7 {[%emt 0:00:57]} 76. Rf6 {[%emt 0:00:59]} Re7 {[%emt 0:00:45]} 77. Bd5 {[%emt 0:00:06]} Be3 {[%emt 0:00:22]} 78. Rc6+ {[%emt 0:00:04]} Kb8 {[%emt 0:00:55]} 79. b6 {[%emt 0:00:10]} Rb7 {[%emt 0:00:16]} 80. Re6 {[%emt 0:00:17]} Bxb6 {[%emt 0:07:24]} 81. Bxb7 {[%emt 0:00:05]} Kxb7 {[%emt 0:00:05]} 82. Kb5 {[%emt 0:00:03]} Bf2 {[%emt 0:00:17]} 83. Re7+ {[%emt 0:00:02]} Kb8 {[%emt 0:00:13]} 84. Kc6 {[%emt 0:00:04]} Bg3 {[%emt 0:00:48]} 85. Rb7+ {[%emt 0:00:05]} Ka8 {[%emt 0:00:05]} 86. Kb6 {[%emt 0:00:37]} Bf2+ {[%emt 0:00:45]} 87. Ka6 {[%emt 0:00:03]} Bg3 {[%emt 0:00:09]} 88. Rg7 {[%emt 0:00:11]} Be5 {[%emt 0:00:20]} 89. Re7 {[%emt 0:00:20]} Bd6 {[%emt 0:00:12]} 90. Rd7 {[%emt 0:00:04]} Bf4 {[%emt 0:00:15]} 91. Kb6 {[%emt 0:00:10]} Bg3 {[%emt 0:00:43]} 92. Ra7+ {[%emt 0:00:28]} Kb8 {[%emt 0:00:10]} 93. Ra2 {[%emt 0:00:02]} Bc7+ {[%emt 0:00:17]} 94. Kc6 {[%emt 0:00:04]} Bf4 {[%emt 0:00:12]} 95. Rb2+ {[%emt 0:00:22]} Ka8 {[%emt 0:00:14]} 96. Rb3 {[%emt 0:00:13]} Be5 {[%emt 0:00:11]} 97. Re3 {[%emt 0:00:23]} Bf4 {[%emt 0:00:13]} 98. Ra3+ {[%emt 0:00:08]} Kb8 {[%emt 0:00:10]} 99. Rb3+ {[%emt 0:00:06]} Ka8 {[%emt 0:00:04]} 100. Kb6 {[%emt 0:00:04]} Kb8 {[%emt 0:00:30]} 101. Rf3 {[%emt 0:00:21]} Bc7+ {[%emt 0:00:12]} 102. Kc6 {[%emt 0:00:03]} Be5 {[%emt 0:00:10]} 103. Rf7 {[%emt 0:00:37]} Bg3 {[%emt 0:00:21]} 104. Kb6 {[%emt 0:00:10]} Ka8 {[%emt 0:01:30]} 105. Rb7 {[%emt 0:00:17]} Bf2+ {[%emt 0:00:16]} 106. Kc7 {[%emt 0:00:02]} Ba7 {[%emt 0:00:41]} 107. Rb3 {[%emt 0:00:11]} Bd4 {[%emt 0:00:11]} 108. Rd3 {[%emt 0:00:13]} Be5+ {[%emt 0:00:10]} 109. Kc6 {[%emt 0:00:21]} Bb8 {[%emt 0:01:13]} 110. Kb6 {[%emt 0:00:21]} Ba7+ {[%emt 0:00:22]} 111. Kc7 {[%emt 0:00:02]} Bf2 {[%emt 0:00:01]} 112. Kc8 {[%emt 0:00:08]} Bb6 {[%emt 0:00:30]} 113. Rf3 {[%emt 0:00:14]} Bd4 {[%emt 0:00:12]} 114. Rf5 {[%emt 0:00:05]} Bb6 {[%emt 0:00:13]} 115. Rd5 {[%emt 0:00:09]} Be3 {[%emt 0:00:13]} 116. Re5 {[%emt 0:00:05]} Bd4 {[%emt 0:00:14]} 117. Rb5 {[%emt 0:00:20]} Be3 {[%emt 0:00:08]} 118. Rb7 {[%emt 0:00:22]} Bf4 {[%emt 0:00:16]} 119. Rb3 {[%emt 0:00:09]} Bd6 {[%emt 0:00:45]} 120. Rb5 {[%emt 0:00:05]} Ka7 {[%emt 0:00:14]} 121. Kd7 {[%emt 0:00:32]} Bg3 {[%emt 0:00:12]} 122. Kc6 {[%emt 0:00:11]} Bf4 {[%emt 0:00:28]} 123. Rb7+ {[%emt 0:00:07]} Ka8 {[%emt 0:00:16]} 124. Re7 {[%emt 0:00:10]} Bg3 {[%emt 0:00:14]} 125. Rd7 {[%emt 0:00:05]} Bf4 {[%emt 0:00:13]} 126. Rg7 {[%emt 0:00:04]} Be5 {[%emt 0:00:14]} 127. Re7 {[%emt 0:00:02]} Bf4 {[%emt 0:00:08]} 128. Kb6 {[%emt 0:00:02]} Bg3 {[%emt 0:00:22]} 129. Re8+ {[%emt 0:00:13]} Bb8 {[%emt 0:00:03]} 130. Re2 {[%emt 0:00:09]} Ba7+ {[%emt 0:00:10]} 131. Kc7 {[%emt 0:00:09]} Bb8+ {[%emt 0:00:06]} 132. Kb6 {[%emt 0:00:02]} Ba7+ {[%emt 0:00:06]} 133. Kc7 {[%emt 0:00:05]} Bb8+ {[%emt 0:00:03]} 134. Kc8 {[%emt 0:00:03]} 1/2-1/2